Workbook

Sheet LISTADO_PUBLICAR
B3: LISTADO CON PRODUCCIÓN DE LA MINERÍA DE SUBSISTENCIA A 15/01/2019 RESOLUCIÓN 40103 DEL 09 FEBRERO DE 2017 METALES PRECIOSOS
B7: Id | C7: NOMBRE | D7: CODIGO DE VERIFICACION (*) | E7: ACUMULADO (En gramos finos) | H7: TOTAL
E8: ORO | F8: PLATA | G8: PLATINO
B9: 1 | C9: NAIMEN ENRIQUE REDONDO ALVARADO | D9: 0229 | E9: 416.64 | F9: 3.36 | G9: 0 | H9: =+SUM(E9:G9) -> 420
B10: 2 | C10: JORGE MARIO URQUIZA FLOREZ | D10: 4865 | E10: 416.64 | F10: 3.36 | G10: 0 | H10: =+SUM(E10:G10) -> 420
B11: 3 | C11: JUAN ALBERTO ESPEJO MORENO | D11: 5115 | E11: 416.64 | F11: 3.36 | G11: 0 | H11: =+SUM(E11:G11) -> 420
B12: 4 | C12: OLINDA JALABE PEÑA | D12: 3235 | E12: 416.64 | F12: 3.36 | G12: 0 | H12: =+SUM(E12:G12) -> 420
B13: 5 | C13: LUDIS MARIA VELASQUEZ MORA | D13: 3324 | E13: 416.64 | F13: 3.36 | G13: 0 | H13: =+SUM(E13:G13) -> 420
B14: 6 | C14: DORME,INA PACHECO HERRERA | D14: 3500 | E14: 416.65 | F14: 3.35 | G14: 0 | H14: =+SUM(E14:G14) -> 420
B15: 7 | C15: GRICERIA MARIA ESPEJO CAMPO | D15: 4789 | E15: 416.64 | F15: 3.36 | G15: 0 | H15: =+SUM(E15:G15) -> 420
B16: 8 | C16: OSMELIA NAJERA | D16: 1123 | E16: 416.64 | F16: 3.36 | G16: 0 | H16: =+SUM(E16:G16) -> 420
B17: 9 | C17: JOSE ELEUTERIO LOZANO ZAYAS | D17: 9400 | E17: 416.65 | F17: 3.35 | G17: 0 | H17: =+SUM(E17:G17) -> 420
B18: 10 | C18: JOSE DE LOS SANTOS CRUZADO LOZANO | D18: 9470 | E18: 416.65 | F18: 3.35 | G18: 0 | H18: =+SUM(E18:G18) -> 420
B19: 11 | C19: NAIN PEÑA CAMPO | D19: 2354 | E19: 416.64 | F19: 3.36 | G19: 0 | H19: =+SUM(E19:G19) -> 420
B20: 12 | C20: JUAN BAUTISTA THOMAS PACHECO | D20: 2373 | E20: 416.64 | F20: 3.36 | G20: 0 | H20: =+SUM(E20:G20) -> 420
B21: 13 | C21: GASPAR PACHECO MORENO | D21: 2090 | E21: 416.64 | F21: 3.36 | G21: 0 | H21: =+SUM(E21:G21) -> 420
B22: 14 | C22: FRANCISCO BANDERA CLAVIJO | D22: 1475 | E22: 416.65 | F22: 3.35 | G22: 0 | H22: =+SUM(E22:G22) -> 420
B23: 15 | C23: EDINSON URQUIZA URQUIZA | D23: 2616 | E23: 416.65 | F23: 3.35 | G23: 0 | H23: =+SUM(E23:G23) -> 420
B24: 16 | C24: JESUS MARIA ORTIZ MEJIA | D24: 2511 | E24: 416.64 | F24: 3.36 | G24: 0 | H24: =+SUM(E24:G24) -> 420
B25: 17 | C25: GENOVEVA PACHECO FERRER | D25: 3813 | E25: 416.64 | F25: 3.36 | G25: 0 | H25: =+SUM(E25:G25) -> 420
B26: 18 | C26: ZENITH ZAYAS MONTES | D26: 7984 | E26: 416.64 | F26: 3.36 | G26: 0 | H26: =+SUM(E26:G26) -> 420
B27: 19 | C27: ROSA MORALES GARCIA | D27: 3247 | E27: 416.65 | F27: 3.35 | G27: 0 | H27: =+SUM(E27:G27) -> 420
B28: 20 | C28: ROSALBA PEREZ GUTIERREZ | D28: 9295 | E28: 416.65 | F28: 3.35 | G28: 0 | H28: =+SUM(E28:G28) -> 420
B29: 21 | C29: LEONARDO GONZALEZ ENCISO | D29: 5860 | E29: 416.65 | F29: 3.35 | G29: 0 | H29: =+SUM(E29:G29) -> 420
B30: 22 | C30: YEINNYS PAOLA GUERRERO LOZANO | D30: 3216 | E30: 416.63 | F30: 3.37 | G30: 0 | H30: =+SUM(E30:G30) -> 420
B31: 23 | C31: RAUL REIN GUERRERO BETANCOURT | D31: 7133 | E31: 416.64 | F31: 3.36 | G31: 0 | H31: =+SUM(E31:G31) -> 420
B32: 24 | C32: MAIRA ALEJANDRA TRESPALACIO HERNANDEZ | D32: 5653 | E32: 416.64 | F32: 3.36 | G32: 0 | H32: =+SUM(E32:G32) -> 420
B33: 25 | C33: ANA ROSA OLAVE FLOREZ | D33: 5750 | E33: 416.64 | F33: 3.36 | G33: 0 | H33: =+SUM(E33:G33) -> 420
B34: 26 | C34: MORELIA OLAVE ROMERO | D34: 5830 | E34: 416.64 | F34: 3.36 | G34: 0 | H34: =+SUM(E34:G34) -> 420
B35: 27 | C35: MARIA JOSE CAMPO HERNANDEZ | D35: 6409 | E35: 416.64 | F35: 3.36 | G35: 0 | H35: =+SUM(E35:G35) -> 420
B36: 28 | C36: MIGUEL PIMIENTA PEÑA | D36: 6540 | E36: 416.64 | F36: 3.36 | G36: 0 | H36: =+SUM(E36:G36) -> 420
B37: 29 | C37: NOLVIS FLOREZ PALLARES | D37: 4175 | E37: 416.65 | F37: 3.35 | G37: 0 | H37: =+SUM(E37:G37) -> 420
B38: 30 | C38: YENIS PAOLA MUÑOZ VERA | D38: 4220 | E38: 416.64 | F38: 3.36 | G38: 0 | H38: =+SUM(E38:G38) -> 420
B39: 31 | C39: DIOGENES FONSECA HERNANDEZ | D39: 6106 | E39: 416.63 | F39: 3.37 | G39: 0 | H39: =+SUM(E39:G39) -> 420
B40: 32 | C40: ANDERSON SOLER VACA | D40: 6198 | E40: 416.64 | F40: 3.36 | G40: 0 | H40: =+SUM(E40:G40) -> 420
B41: 33 | C41: JULIAN OLAVE DONADO | D41: 6358 | E41: 416.64 | F41: 3.36 | G41: 0 | H41: =+SUM(E41:G41) -> 420
B42: 34 | C42: 0NEIDER SIERRA ZAYAS | D42: 7508 | E42: 416.63 | F42: 3.37 | G42: 0 | H42: =+SUM(E42:G42) -> 420
B43: 35 | C43: CELINA SUMALAVELA QUINTERO | D43: 2630 | E43: 416.64 | F43: 3.36 | G43: 0 | H43: =+SUM(E43:G43) -> 420
B44: 36 | C44: KETIN TATIANA URQUIZA SIERRA | D44: 5838 | E44: 416.64 | F44: 3.36 | G44: 0 | H44: =+SUM(E44:G44) -> 420
B45: 37 | C45: KATERINE MILENA MOLINA CARVALLIDO | D45: 8076 | E45: 416.63 | F45: 3.37 | G45: 0 | H45: =+SUM(E45:G45) -> 420
B46: 38 | C46: NEPTALIS GONZALEZ RANGEL | D46: 7591 | E46: 416.63 | F46: 3.37 | G46: 0 | H46: =+SUM(E46:G46) -> 420
B47: 39 | C47: LIDES PIMIENTA SUAREZ | D47: 5079 | E47: 416.64 | F47: 3.36 | G47: 0 | H47: =+SUM(E47:G47) -> 420
B48: 40 | C48: FRAY ANTONIO GOOMEZ THOMAS | D48: 6964 | E48: 416.64 | F48: 3.36 | G48: 0 | H48: =+SUM(E48:G48) -> 420
B49: 41 | C49: JULIO ANTONIO CARPIO MARTINEZ | D49: 9248 | E49: 416.64 | F49: 3.36 | G49: 0 | H49: =+SUM(E49:G49) -> 420
B50: 42 | C50: JESUS EMILIO CARRASCAL ASCANIO | D50: 7859 | E50: 416.63 | F50: 3.37 | G50: 0 | H50: =+SUM(E50:G50) -> 420
B51: 43 | C51: DIONICIO GARCIA HERRERA | D51: 9612 | E51: 416.65 | F51: 3.35 | G51: 0 | H51: =+SUM(E51:G51) -> 420
B52: 44 | C52: BEATRIZ HERNANDEZ GARCIA | D52: 7214 | E52: 416.64 | F52: 3.36 | G52: 0 | H52: =+SUM(E52:G52) -> 420
B53: 45 | C53: LUZ MARIA PACHECO CAMPO | D53: 7445 | E53: 416.65 | F53: 3.35 | G53: 0 | H53: =+SUM(E53:G53) -> 420
B54: 46 | C54: MARIA DE LA CRUZ OLAVES GOMEZ | D54: 7578 | E54: 416.64 | F54: 3.36 | G54: 0 | H54: =+SUM(E54:G54) -> 420
B55: 47 | C55: LUCIA SIERRA VELASQUEZ | D55: 7663 | E55: 416.63 | F55: 3.37 | G55: 0 | H55: =+SUM(E55:G55) -> 420
B56: 48 | C56: MIRIAN ELEN MENDOZA ROBLES | D56: 7758 | E56: 416.64 | F56: 3.36 | G56: 0 | H56: =+SUM(E56:G56) -> 420
B57: 49 | C57: RUFINA DELA ROSA PACHECO PIMIENTA | D57: 4585 | E57: 416.64 | F57: 3.36 | G57: 0 | H57: =+SUM(E57:G57) -> 420
B58: 50 | C58: BENILDA HERNANDEZ ROMERO | D58: 2741 | E58: 416.64 | F58: 3.36 | G58: 0 | H58: =+SUM(E58:G58) -> 420
B59: 51 | C59: ELISA PUELLO JIMENEZ | D59: 7499 | E59: 416.64 | F59: 3.36 | G59: 0 | H59: =+SUM(E59:G59) -> 420
B60: 52 | C60: LEDIS MARIA ACOSTA PEÑA | D60: 7830 | E60: 416.64 | F60: 3.36 | G60: 0 | H60: =+SUM(E60:G60) -> 420
B61: 53 | C61: YUDIS GARCIA TOVAR | D61: 3418 | E61: 416.65 | F61: 3.35 | G61: 0 | H61: =+SUM(E61:G61) -> 420
B62: 54 | C62: YARIMA MONTES RUIZ | D62: 3487 | E62: 416.64 | F62: 3.36 | G62: 0 | H62: =+SUM(E62:G62) -> 420
B63: 55 | C63: LIDIS GRANADOS GRISMALDO | D63: 4538 | E63: 416.64 | F63: 3.36 | G63: 0 | H63: =+SUM(E63:G63) -> 420
B64: 56 | C64: NURIS PACHECO VELASQUEZ | D64: 8098 | E64: 416.65 | F64: 3.35 | G64: 0 | H64: =+SUM(E64:G64) -> 420
B65: 57 | C65: ELISABETH ZAYAS PINEDA | D65: 3146 | E65: 416.65 | F65: 3.35 | G65: 0 | H65: =+SUM(E65:G65) -> 420
B66: 58 | C66: DANOLIS MENDEZ MENDOZA | D66: 4732 | E66: 416.63 | F66: 3.37 | G66: 0 | H66: =+SUM(E66:G66) -> 420
B67: 59 | C67: ASNOBIA ISABEL ZAYAS JIMENEZ | D67: 4861 | E67: 416.63 | F67: 3.37 | G67: 0 | H67: =+SUM(E67:G67) -> 420
B68: 60 | C68: LUIS EDUARDO LOPEZ MUÑOZ | D68: 7732 | E68: 416.64 | F68: 3.36 | G68: 0 | H68: =+SUM(E68:G68) -> 420
B69: 61 | C69: PROTOGENES PACHECO ARIZA | D69: 9142 | E69: 416.64 | F69: 3.36 | G69: 0 | H69: =+SUM(E69:G69) -> 420
B70: 62 | C70: HERNAN FONSECA FRAIJA | D70: 9355 | E70: 416.63 | F70: 3.37 | G70: 0 | H70: =+SUM(E70:G70) -> 420
B71: 63 | C71: CIPRIANO GARCIA SAYAS | D71: 9467 | E71: 416.65 | F71: 3.35 | G71: 0 | H71: =+SUM(E71:G71) -> 420
B72: 64 | C72: DIOSENEL HERRERA PEREZ | D72: 6764 | E72: 416.65 | F72: 3.35 | G72: 0 | H72: =+SUM(E72:G72) -> 420
B73: 65 | C73: LUIS EDUARDO OLAVE GRANADOS | D73: 6903 | E73: 416.64 | F73: 3.36 | G73: 0 | H73: =+SUM(E73:G73) -> 420
B74: 66 | C74: JOSE ELOUTERIO DUQUE PALENCIA | D74: 6915 | E74: 416.64 | F74: 3.36 | G74: 0 | H74: =+SUM(E74:G74) -> 420
B75: 67 | C75: NIRITXA MARTINEZ ACEVEDO | D75: 0753 | E75: 416.65 | F75: 3.35 | G75: 0 | H75: =+SUM(E75:G75) -> 420
B76: 68 | C76: OSCAR LOBO ZAYAS | D76: 1178 | E76: 416.65 | F76: 3.35 | G76: 0 | H76: =+SUM(E76:G76) -> 420
B77: 69 | C77: NUBIA SANGUINO ACEVEDO | D77: 6443 | E77: 416.64 | F77: 3.36 | G77: 0 | H77: =+SUM(E77:G77) -> 420
B78: 70 | C78: NAIROBI JIMENEZ OLAVE | D78: 8640 | E78: 416.64 | F78: 3.36 | G78: 0 | H78: =+SUM(E78:G78) -> 420
B79: 71 | C79: JUANA FLOEZ TORO | D79: 1623 | E79: 416.64 | F79: 3.36 | G79: 0 | H79: =+SUM(E79:G79) -> 420
B80: 72 | C80: JOSE ALFREDO JIMENEZ TAFUR | D80: 2317 | E80: 416.63 | F80: 3.37 | G80: 0 | H80: =+SUM(E80:G80) -> 420
B81: 73 | C81: JOSE GREGORIO HUERTAS MACEA | D81: 6728 | E81: 416.64 | F81: 3.36 | G81: 0 | H81: =+SUM(E81:G81) -> 420
B82: 74 | C82: MISAEL RENGIFO ARIZA | D82: 1859 | E82: 416.64 | F82: 3.36 | G82: 0 | H82: =+SUM(E82:G82) -> 420
B83: 75 | C83: JOSE TRINIDAD GARZON LOZANO | D83: 2554 | E83: 416.63 | F83: 3.37 | G83: 0 | H83: =+SUM(E83:G83) -> 420
B84: 76 | C84: EDGAR CHAVEZ HERRERA | D84: 2568 | E84: 416.64 | F84: 3.36 | G84: 0 | H84: =+SUM(E84:G84) -> 420
B85: 77 | C85: OLFER MACIAS BAUTISTA | D85: 2635 | E85: 416.64 | F85: 3.36 | G85: 0 | H85: =+SUM(E85:G85) -> 420
B86: 78 | C86: WILMAN HERNANDEZ VELASQUEZ | D86: 2723 | E86: 416.65 | F86: 3.35 | G86: 0 | H86: =+SUM(E86:G86) -> 420
B87: 79 | C87: OLINTO MAÑARA PALACIO | D87: 2727 | E87: 416.64 | F87: 3.36 | G87: 0 | H87: =+SUM(E87:G87) -> 420
B88: 80 | C88: NIMIO SIERRA GRACIA | D88: 2048 | E88: 416.64 | F88: 3.36 | G88: 0 | H88: =+SUM(E88:G88) -> 420
B89: 81 | C89: ALZAEL FLOREZ PEÑA | D89: 2135 | E89: 416.64 | F89: 3.36 | G89: 0 | H89: =+SUM(E89:G89) -> 420
B90: 82 | C90: VICTOR MANUEL OLIVERO CAMPO | D90: 2194 | E90: 416.64 | F90: 3.36 | G90: 0 | H90: =+SUM(E90:G90) -> 420
B91: 83 | C91: LUIS ALFONSO TURIZO CAMPUZANO | D91: 6786 | E91: 416.64 | F91: 3.36 | G91: 0 | H91: =+SUM(E91:G91) -> 420
B92: 84 | C92: JOSE ANOTNIO HERNANDEZ PEREZ | D92: 2797 | E92: 416.64 | F92: 3.36 | G92: 0 | H92: =+SUM(E92:G92) -> 420
B93: 85 | C93: EDIMER ENRIQUE PERALTA CAMARGO | D93: 2844 | E93: 416.64 | F93: 3.36 | G93: 0 | H93: =+SUM(E93:G93) -> 420
B94: 86 | C94: JOSE ELIAS DUQUE ATUESTA | D94: 2479 | E94: 416.64 | F94: 3.36 | G94: 0 | H94: =+SUM(E94:G94) -> 420
B95: 87 | C95: JEODANIS PEÑA PEÑA | D95: 2480 | E95: 416.63 | F95: 3.37 | G95: 0 | H95: =+SUM(E95:G95) -> 420
B96: 88 | C96: MISAEL ENRRIQUE HERNANDEZ CONTRERAS | D96: 0786 | E96: 416.64 | F96: 3.36 | G96: 0 | H96: =+SUM(E96:G96) -> 420
B97: 89 | C97: JUAN CARLOS CAMPUZANO CAMPO | D97: 1074 | E97: 416.63 | F97: 3.37 | G97: 0 | H97: =+SUM(E97:G97) -> 420
B98: 90 | C98: GABRIEL JOSE MATTOS CAMPO | D98: 2848 | E98: 416.64 | F98: 3.36 | G98: 0 | H98: =+SUM(E98:G98) -> 420
B99: 91 | C99: MIGUEL ANGEL JIMENES MARTINES | D99: 9861 | E99: 416.63 | F99: 3.37 | G99: 0 | H99: =+SUM(E99:G99) -> 420
B100: 92 | C100: JOSE URREA RAMIREZ | D100: 0932 | E100: 416.64 | F100: 3.36 | G100: 0 | H100: =+SUM(E100:G100) -> 420
B101: 93 | C101: JESUS ALBERTO VELASQUEZ MUÑOZ | D101: 2142 | E101: 416.64 | F101: 3.36 | G101: 0 | H101: =+SUM(E101:G101) -> 420
B102: 94 | C102: DENIS PEÑA ZAYAS | D102: 4279 | E102: 416.65 | F102: 3.35 | G102: 0 | H102: =+SUM(E102:G102) -> 420
B103: 95 | C103: LUIS CARLOS MUÑOZ PEÑA | D103: 1684 | E103: 416.64 | F103: 3.36 | G103: 0 | H103: =+SUM(E103:G103) -> 420
B104: 96 | C104: OMAIRA LLORENTE GARCIA | D104: 6623 | E104: 416.63 | F104: 3.37 | G104: 0 | H104: =+SUM(E104:G104) -> 420
B105: 97 | C105: MARTHA VARGAS SEPULVEDA | D105: 7859 | E105: 416.65 | F105: 3.35 | G105: 0 | H105: =+SUM(E105:G105) -> 420
B106: 98 | C106: LIGIA IBETH LOPEZ CANALES | D106: 1714 | E106: 416.63 | F106: 3.37 | G106: 0 | H106: =+SUM(E106:G106) -> 420
B107: 99 | C107: LUZDELLIS URQUIZA FLOREZ | D107: 5043 | E107: 416.65 | F107: 3.35 | G107: 0 | H107: =+SUM(E107:G107) -> 420
B108: 100 | C108: MARICRUZ LERMA TUIRAN | D108: 5093 | E108: 416.64 | F108: 3.36 | G108: 0 | H108: =+SUM(E108:G108) -> 420
B109: 101 | C109: JOSE CRISPIN SANCHEZ | D109: 7312 | E109: 416.65 | F109: 3.35 | G109: 0 | H109: =+SUM(E109:G109) -> 420
B110: 102 | C110: MAXIMO OTALVAREZ FLOREZ | D110: 9263 | E110: 416.64 | F110: 3.36 | G110: 0 | H110: =+SUM(E110:G110) -> 420
B111: 103 | C111: ISRAEL OSPINO FONSECA | D111: 9238 | E111: 416.64 | F111: 3.36 | G111: 0 | H111: =+SUM(E111:G111) -> 420
B112: 104 | C112: ALCIBIADES URQUIZA FLOREZ | D112: 9322 | E112: 416.64 | F112: 3.36 | G112: 0 | H112: =+SUM(E112:G112) -> 420
B113: 105 | C113: CARMEN ODILCIA SALAZAR MONTES | D113: 2883 | E113: 416.65 | F113: 3.35 | G113: 0 | H113: =+SUM(E113:G113) -> 420
B114: 106 | C114: ELSA LIMA PEÑA | D114: 3081 | E114: 416.65 | F114: 3.35 | G114: 0 | H114: =+SUM(E114:G114) -> 420
B115: 107 | C115: ANA CLEOTILDE LERMA CAMPO | D115: 7408 | E115: 416.63 | F115: 3.37 | G115: 0 | H115: =+SUM(E115:G115) -> 420
B116: 108 | C116: MARIA AURORA OLIVERO PEÑA | D116: 7550 | E116: 416.64 | F116: 3.36 | G116: 0 | H116: =+SUM(E116:G116) -> 420
B117: 109 | C117: MELANIA URQUIZA FLOREZ | D117: 7823 | E117: 416.63 | F117: 3.37 | G117: 0 | H117: =+SUM(E117:G117) -> 420
B118: 110 | C118: LUCIANO VELASQUEZ JAIME | D118: 3063 | E118: 416.64 | F118: 3.36 | G118: 0 | H118: =+SUM(E118:G118) -> 420
B119: 111 | C119: CIRO ANTONIO MORA | D119: 5759 | E119: 416.64 | F119: 3.36 | G119: 0 | H119: =+SUM(E119:G119) -> 420
B120: 112 | C120: ROCIO DEL CARMEN ROJAS MARTINEZ | D120: 7661 | E120: 416.64 | F120: 3.36 | G120: 0 | H120: =+SUM(E120:G120) -> 420
B121: 113 | C121: ROBINSON MANUEL SANCHEZ TORREZ | D121: 8077 | E121: 416.64 | F121: 3.36 | G121: 0 | H121: =+SUM(E121:G121) -> 420
B122: 114 | C122: CONSUELO SOLER URREA | D122: 3302 | E122: 416.64 | F122: 3.36 | G122: 0 | H122: =+SUM(E122:G122) -> 420
B123: 115 | C123: SULEIDY PINTO SUAREZ | D123: 4050 | E123: 416.64 | F123: 3.36 | G123: 0 | H123: =+SUM(E123:G123) -> 420
B124: 116 | C124: CECILIA SANABRIA | D124: 4725 | E124: 416.64 | F124: 3.36 | G124: 0 | H124: =+SUM(E124:G124) -> 420
B125: 117 | C125: RUBIELA RODRIGUEZ PABON | D125: 5439 | E125: 416.64 | F125: 3.36 | G125: 0 | H125: =+SUM(E125:G125) -> 420
B126: 118 | C126: YORFE VELASQUEZ JIMENEZ | D126: 5448 | E126: 416.64 | F126: 3.36 | G126: 0 | H126: =+SUM(E126:G126) -> 420
B127: 119 | C127: BRILLINES URQUIZQ URQUIZA | D127: 5516 | E127: 416.64 | F127: 3.36 | G127: 0 | H127: =+SUM(E127:G127) -> 420
B128: 120 | C128: ALEJA PEREZ GRANADOS | D128: 5686 | E128: 416.64 | F128: 3.36 | G128: 0 | H128: =+SUM(E128:G128) -> 420
B129: 121 | C129: DIANA MARCELA ROMERO PEÑA | D129: 6159 | E129: 416.64 | F129: 3.36 | G129: 0 | H129: =+SUM(E129:G129) -> 420
B130: 122 | C130: INGRIS JHOHANA RUIZ NUÑEZ | D130: 5758 | E130: 416.64 | F130: 3.36 | G130: 0 | H130: =+SUM(E130:G130) -> 420
B131: 123 | C131: LILIBETH QUINTERO PAYARES | D131: 8775 | E131: 416.64 | F131: 3.36 | G131: 0 | H131: =+SUM(E131:G131) -> 420
B132: 124 | C132: FRANCISCO LOBO CAMPO | D132: 6567 | E132: 416.64 | F132: 3.36 | G132: 0 | H132: =+SUM(E132:G132) -> 420
B133: 125 | C133: MARISOL RODRIGUEZ QUINTERO | D133: 4395 | E133: 416.64 | F133: 3.36 | G133: 0 | H133: =+SUM(E133:G133) -> 420
B134: 126 | C134: JAILSON ESPEJO CAMPO | D134: 2927 | E134: 416.64 | F134: 3.36 | G134: 0 | H134: =+SUM(E134:G134) -> 420
B135: 127 | C135: TRINO RINCON SANABRIA | D135: 2259 | E135: 416.64 | F135: 3.36 | G135: 0 | H135: =+SUM(E135:G135) -> 420
B136: 128 | C136: MARIA ISIDORA PALLARES MENDOZA | D136: 9578 | E136: 416.64 | F136: 3.36 | G136: 0 | H136: =+SUM(E136:G136) -> 420
B137: 129 | C137: ALFONSO ORTIZ CONTRERAS | D137: 5410 | E137: 416.64 | F137: 3.36 | G137: 0 | H137: =+SUM(E137:G137) -> 420
B138: 130 | C138: WILSON ANTONIO PALLARES MEDINA | D138: 1086 | E138: 416.64 | F138: 3.36 | G138: 0 | H138: =+SUM(E138:G138) -> 420
B139: 131 | C139: ANA ROSA PACHECO OLIVEROS | D139: 3367 | E139: 416.64 | F139: 3.36 | G139: 0 | H139: =+SUM(E139:G139) -> 420
B140: 132 | C140: MARIBEL PEÑA PACHECO | D140: 7694 | E140: 416.63 | F140: 3.37 | G140: 0 | H140: =+SUM(E140:G140) -> 420
B141: 133 | C141: SANDRA MILENA PARADA ALZATE | D141: 2176 | E141: 416.65 | F141: 3.35 | G141: 0 | H141: =+SUM(E141:G141) -> 420
B142: 134 | C142: YENNIS ZAYAS CAMPO | D142: 5451 | E142: 416.64 | F142: 3.36 | G142: 0 | H142: =+SUM(E142:G142) -> 420
B143: 135 | C143: MARTA HERNANDEZ | D143: 2655 | E143: 415.65 | F143: 3.35 | G143: 0 | H143: =+SUM(E143:G143) -> 419
B144: 136 | C144: LUZ DELLIS MAÑARA MEDINA | D144: 4540 | E144: 415.64 | F144: 3.36 | G144: 0 | H144: =+SUM(E144:G144) -> 419
B145: 137 | C145: MARIA FATIMA DEL SOCORRO ALVAREZ GONZALEZ | D145: 4130 | E145: 415.65 | F145: 3.35 | G145: 0 | H145: =+SUM(E145:G145) -> 419
B146: 138 | C146: SEIR OSORIO OROZCO | D146: 8902 | E146: 324.39 | F146: 92.9 | G146: 0 | H146: =+SUM(E146:G146) -> 417.29
B147: 139 | C147: ESTEBAN CAMILO GALLEGO MONTOYA | D147: 3826 | E147: 397.22 | F147: 3.53 | G147: 0 | H147: =+SUM(E147:G147) -> 400.75
B148: 140 | C148: EVER HUMBERTO GIRALDO TORRES | D148: 4993 | E148: 319.94 | F148: 77.93 | G148: 0 | H148: =+SUM(E148:G148) -> 397.87
B149: 141 | C149: CLAUDIO PIZA PIZA | D149: 6341 | E149: 383.66 | F149: 0 | G149: 0 | H149: =+SUM(E149:G149) -> 383.66
B150: 142 | C150: YENY CAROLINA GALEANO CALVO | D150: 8964 | E150: 323 | F150: 57 | G150: 0 | H150: =+SUM(E150:G150) -> 380
B151: 143 | C151: JUAN MAURICIO VELEZ VELEZ | D151: 0018 | E151: 306 | F151: 54 | G151: 0 | H151: =+SUM(E151:G151) -> 360
B152: 144 | C152: CARLOS ALBERTO VELEZ VELEZ | D152: 3459 | E152: 306 | F152: 54 | G152: 0 | H152: =+SUM(E152:G152) -> 360
B153: 145 | C153: MARTHA MIRIAN VELEZ VELEZ | D153: 5782 | E153: 306 | F153: 54 | G153: 0 | H153: =+SUM(E153:G153) -> 360
B154: 146 | C154: CARLOS WILSON PEREZ IBARRA | D154: 9940 | E154: 306 | F154: 54 | G154: 0 | H154: =+SUM(E154:G154) -> 360
B155: 147 | C155: JOSE URIEL MENDEZ CASTAÑEDA | D155: 3696 | E155: 329.64 | F155: 30.36 | G155: 0 | H155: =+SUM(E155:G155) -> 360
B156: 148 | C156: LUISA FERNANDA MANSO LADINO | D156: 1879 | E156: 306 | F156: 54 | G156: 0 | H156: =+SUM(E156:G156) -> 360
B157: 149 | C157: WALTER ADOLFO MUÑOZ CARDEÑO | D157: 8572 | E157: 317.17 | F157: 41.61 | G157: 0 | H157: =+SUM(E157:G157) -> 358.78
B158: 150 | C158: YANID ISABEL GONSALEZ CABARCA | D158: 6429 | E158: 311.11 | F158: 35.26 | G158: 0 | H158: =+SUM(E158:G158) -> 346.37
B159: 151 | C159: PEDRO MANUEL ATENCIO MARTINEZ | D159: 0545 | E159: 291.29 | F159: 49.75 | G159: 0 | H159: =+SUM(E159:G159) -> 341.04
B160: 152 | C160: WANDA LUCIA GONZALEZ GONZALEZ | D160: 1381 | E160: 306.08 | F160: 34.57 | G160: 0 | H160: =+SUM(E160:G160) -> 340.65
B161: 153 | C161: BEATRIZ ANDREA BUENO SUAREZ | D161: 7139 | E161: 289 | F161: 51 | G161: 0 | H161: =+SUM(E161:G161) -> 340
B162: 154 | C162: NARJE IMIDIO PATERNINA SOLORZANO | D162: 4428 | E162: 334.8 | F162: 2.7 | G162: 0 | H162: =+SUM(E162:G162) -> 337.5
B163: 155 | C163: HECTOR LEON OROZCO VALENCIA | D163: 1064 | E163: 294.11 | F163: 43.23 | G163: 0 | H163: =+SUM(E163:G163) -> 337.34
B164: 156 | C164: EDERLYS PARDO OTERO | D164: 3702 | E164: 334.31 | F164: 2.69 | G164: 0 | H164: =+SUM(E164:G164) -> 337
B165: 157 | C165: ELIXANDER CUETO SERENO | D165: 1101 | E165: 334.2 | F165: 2.7 | G165: 0 | H165: =+SUM(E165:G165) -> 336.9
B166: 158 | C166: DELMIRIS QUINTERO CASTAÑEDA | D166: 3408 | E166: 333.82 | F166: 2.68 | G166: 0 | H166: =+SUM(E166:G166) -> 336.5
B167: 159 | C167: MARTHA CECILIA MEZA OCHOA | D167: 6954 | E167: 333.41 | F167: 2.69 | G167: 0 | H167: =+SUM(E167:G167) -> 336.1
B168: 160 | C168: JOSE DAVID ARMESTO PEREZ DAVID ARMESTO PEREZ | D168: 0382 | E168: 333.32 | F168: 2.68 | G168: 0 | H168: =+SUM(E168:G168) -> 336
B169: 161 | C169: LENIN VITAL SOLORZANO | D169: 4441 | E169: 333.31 | F169: 2.69 | G169: 0 | H169: =+SUM(E169:G169) -> 336
B170: 162 | C170: JOHN JAIDER DIAZ PATERNINA | D170: 7376 | E170: 333.3 | F170: 2.7 | G170: 0 | H170: =+SUM(E170:G170) -> 336
B171: 163 | C171: YEISMI SORACA ROMERO | D171: 2192 | E171: 333.2 | F171: 2.7 | G171: 0 | H171: =+SUM(E171:G171) -> 335.9
B172: 164 | C172: RAMON REYES GONZALEZ | D172: 9078 | E172: 333.12 | F172: 2.68 | G172: 0 | H172: =+SUM(E172:G172) -> 335.8
B173: 165 | C173: ROSA MARIA SERENO PEREZ | D173: 7107 | E173: 333.01 | F173: 2.69 | G173: 0 | H173: =+SUM(E173:G173) -> 335.7
B174: 166 | C174: SOFIA CANTILLO PADILLA | D174: 7094 | E174: 332.92 | F174: 2.68 | G174: 0 | H174: =+SUM(E174:G174) -> 335.6
B175: 167 | C175: MAGALIS GONZALEZ AGUA | D175: 7930 | E175: 332.82 | F175: 2.68 | G175: 0 | H175: =+SUM(E175:G175) -> 335.5
B176: 168 | C176: JORGE LUIS LAGARES GRANADO | D176: 6091 | E176: 332.72 | F176: 2.68 | G176: 0 | H176: =+SUM(E176:G176) -> 335.4
B177: 169 | C177: FELICIANO MANUEL MAURY RODELO | D177: 5997 | E177: 332.72 | F177: 2.68 | G177: 0 | H177: =+SUM(E177:G177) -> 335.4
B178: 170 | C178: JAQUELINE TORRES ALVEAR | D178: 8211 | E178: 332.62 | F178: 2.68 | G178: 0 | H178: =+SUM(E178:G178) -> 335.3
B179: 171 | C179: VICTOR MANUEL MATUTE MARTINEZ | D179: 5012 | E179: 332.62 | F179: 2.68 | G179: 0 | H179: =+SUM(E179:G179) -> 335.3
B180: 172 | C180: DORGINA SERENO CASTAÑEDA | D180: 6917 | E180: 332.43 | F180: 2.67 | G180: 0 | H180: =+SUM(E180:G180) -> 335.1
B181: 173 | C181: JOSE DEL CARMEN YEPES RANGEL | D181: 8768 | E181: 332.32 | F181: 2.68 | G181: 0 | H181: =+SUM(E181:G181) -> 335
B182: 174 | C182: PEDRO ANTONIO GALOFRE GIL | D182: 8985 | E182: 332.32 | F182: 2.68 | G182: 0 | H182: =+SUM(E182:G182) -> 335
B183: 175 | C183: SANDRO SANTODOMINGO MOLINA | D183: 7706 | E183: 332.22 | F183: 2.68 | G183: 0 | H183: =+SUM(E183:G183) -> 334.9
B184: 176 | C184: LUIS JOSE BELEÑO CALVO | D184: 0521 | E184: 332.03 | F184: 2.67 | G184: 0 | H184: =+SUM(E184:G184) -> 334.7
B185: 177 | C185: OMAIRA MADERO SIERRA | D185: 6528 | E185: 331.73 | F185: 2.67 | G185: 0 | H185: =+SUM(E185:G185) -> 334.4
B186: 178 | C186: ALEXANDER PALLARES ORTEGA | D186: 4322 | E186: 331.63 | F186: 2.67 | G186: 0 | H186: =+SUM(E186:G186) -> 334.3
B187: 179 | C187: LEOVIGILDO SERRANO PAVA | D187: 2028 | E187: 331.53 | F187: 2.67 | G187: 0 | H187: =+SUM(E187:G187) -> 334.2
B188: 180 | C188: JOHN NEIDER MATUTE DURAN | D188: 7611 | E188: 331.53 | F188: 2.67 | G188: 0 | H188: =+SUM(E188:G188) -> 334.2
B189: 181 | C189: SELENIA SUAREZ CARRERA | D189: 5898 | E189: 331.42 | F189: 2.68 | G189: 0 | H189: =+SUM(E189:G189) -> 334.1
B190: 182 | C190: ELIZABETH RANGEL GARCIA | D190: 5897 | E190: 331.23 | F190: 2.67 | G190: 0 | H190: =+SUM(E190:G190) -> 333.9
B191: 183 | C191: ISRAEL ABDONIS CARRASCAL ORTEGA | D191: 9535 | E191: 331.13 | F191: 2.67 | G191: 0 | H191: =+SUM(E191:G191) -> 333.8
B192: 184 | C192: ANYILIZ PAOLA HERNANDEZ DELGADO | D192: 2193 | E192: 331.13 | F192: 2.67 | G192: 0 | H192: =+SUM(E192:G192) -> 333.8
B193: 185 | C193: BERLEIDA ESTER BALTAZAR BALDOVINO | D193: 7040 | E193: 331.12 | F193: 2.68 | G193: 0 | H193: =+SUM(E193:G193) -> 333.8
B194: 186 | C194: EDILBERTO PALENCIA PEREZ | D194: 9049 | E194: 331.03 | F194: 2.67 | G194: 0 | H194: =+SUM(E194:G194) -> 333.7
B195: 187 | C195: JOSE DEL CARMEN QUINTERO CASTAÑEDA | D195: 9957 | E195: 331.02 | F195: 2.68 | G195: 0 | H195: =+SUM(E195:G195) -> 333.7
B196: 188 | C196: ROBINSON HERNANDEZ ARENA | D196: 4624 | E196: 330.94 | F196: 2.66 | G196: 0 | H196: =+SUM(E196:G196) -> 333.6
B197: 189 | C197: MARIA ISOLINA BRAND DELGADO | D197: 4225 | E197: 330.94 | F197: 2.66 | G197: 0 | H197: =+SUM(E197:G197) -> 333.6
B198: 190 | C198: CILFREDO ZABALA MARTINEZ | D198: 4639 | E198: 330.83 | F198: 2.67 | G198: 0 | H198: =+SUM(E198:G198) -> 333.5
B199: 191 | C199: PEDRO MARTINEZ OLIVARES | D199: 7053 | E199: 330.84 | F199: 2.66 | G199: 0 | H199: =+SUM(E199:G199) -> 333.5
B200: 192 | C200: ANADELIA PEREZ GUZMAN | D200: 8471 | E200: 330.83 | F200: 2.67 | G200: 0 | H200: =+SUM(E200:G200) -> 333.5
B201: 193 | C201: CESAR JULIO DOMINGUEZ ARIZA JULIO DOMINGUEZ ARIZA | D201: 8344 | E201: 330.83 | F201: 2.67 | G201: 0 | H201: =+SUM(E201:G201) -> 333.5
B202: 194 | C202: CASIMIRO ESTRADA MORENO | D202: 8668 | E202: 330.83 | F202: 2.67 | G202: 0 | H202: =+SUM(E202:G202) -> 333.5
B203: 195 | C203: JUAN DE DIOS SANCHEZ SANCHEZ | D203: 7155 | E203: 330.73 | F203: 2.67 | G203: 0 | H203: =+SUM(E203:G203) -> 333.4
B204: 196 | C204: DENYS DEL CARMEN SIERRA DIAZ | D204: 7544 | E204: 330.73 | F204: 2.67 | G204: 0 | H204: =+SUM(E204:G204) -> 333.4
B205: 197 | C205: ROSA HERNANDEZ RUEDA | D205: 7911 | E205: 330.73 | F205: 2.67 | G205: 0 | H205: =+SUM(E205:G205) -> 333.4
... 4295 more rows
